bitfinex-derivatives/quotes_SOLF0:USTF0_20250911
["timestamp","ask_amount","ask_price","bid_price","bid_amount"]
[1757595842576,0.88,225.39,225.3,4.89917429]
[1757595842777,0.88,225.39,225.31,8.60917429]
[1757595844278,0.88,225.39,225.31,4.89917429]
[1757595844573,0.88,225.32,225.25,4.89917429]
[1757595844774,0.88,225.32,225.23,18.06]
[1757595844775,0.88,225.32,225.24,4.89917429]
[1757595844974,0.88,225.32,225.25,3.71]
[1757595845177,7.11,225.4,225.28,3.71]
[1757595845476,7.11,225.4,225.28,8.60917429]
[1757595845781,0.88,225.35,225.28,22.27]
[1757595846079,7.11,225.45,225.25,4.89917429]
[1757595846280,0.88,225.31,225.24,4.89917429]
[1757595846479,0.88,225.31,225.25,4.89917429]
[1757595846678,7.11,225.4,225.26,3.71]
[1757595846879,0.88,225.33,225.26,3.71]
[1757595847183,0.88,225.34,225.26,8.60917429]
[1757595847978,0.88,225.34,225.27,4.89917429]
[1757595849177,7.11,225.4,225.27,4.89917429]
[1757595849386,0.88,225.33,225.26,4.89917429]
[1757595849584,7.11,225.35,225.26,4.89917429]
[1757595849883,7.11,225.35,225.25,4.89917429]
[1757595850084,7.11,225.35,225.24,4.89917429]
[1757595850382,0.88,225.3,225.24,4.89917429]
[1757595850584,7.11,225.35,225.25,8.60917429]
[1757595850884,0.88,225.33,225.25,8.60917429]
[1757595851078,7.11,225.35,225.25,8.60917429]
[1757595851079,0.88,225.31,225.25,3.71]
[1757595851483,0.88,225.31,225.24,4.89917429]
[1757595851685,0.88,225.31,225.25,4.89917429]
[1757595851887,7.11,225.35,225.24,4.89917429]
[1757595852089,0.88,225.3,225.24,4.89917429]
[1757595852285,0.88,225.29,225.22,4.89917429]
[1757595852482,0.88,225.29,225.21,4.89917429]
[1757595852483,0.88,225.27,225.21,4.89917429]
[1757595852684,7.11,225.25,225.19,4.89917429]
[1757595852879,0.88,225.25,225.18,4.89917429]
[1757595853086,0.88,225.23,225.18,4.89917429]
[1757595853289,0.88,225.22,225.17,4.89917429]
[1757595853683,0.88,225.22,225.18,3.71]
[1757595853885,7.11,225.37,225.19,7.36025889]
[1757595854188,7.11,225.37,225.25,4.95159886]
[1757595854878,7.11,225.37,225.26,4.95159886]
[1757595855081,7.11,225.46,225.28,4.95159886]
[1757595855288,7.11,225.46,225.3,4.95159886]
[1757595856781,7.11,225.46,225.32,4.95159886]
[1757595857083,7.11,225.46,225.35,4.95159886]
[1757595857284,7.11,225.46,225.34,4.95159886]
[1757595857677,7.11,225.46,225.33,4.95159886]
[1757595858089,7.11,225.46,225.32,4.95159886]
[1757595858685,7.11,225.46,225.31,4.95159886]
[1757595858887,7.11,225.46,225.3,4.95159886]
[1757595861188,7.11,225.38,225.26,4.95159886]
[1757595861490,7.11,225.38,225.23,4.95159886]
[1757595862182,7.11,225.38,225.24,2.83]
[1757595862391,7.11,225.38,225.24,7.78159886]
[1757595862695,7.11,225.38,225.24,2.83]
[1757595862892,7.11,225.38,225.22,4.95159886]
[1757595863790,7.11,225.38,225.21,4.95159886]
[1757595864190,7.11,225.46,225.2,2.83]
[1757595864593,5.29504846,225.43,225.2,2.83]
[1757595864792,5.29504846,225.43,225.21,37.72]
[1757595864989,7.11,225.37,225.2,2.83]
[1757595865191,7.11,225.37,225.18,7.36025889]
[1757595865585,7.11,225.37,225.19,2.83]
[1757595867300,7.32,225.43,225.19,2.83]
[1757595869592,5.29504846,225.44,225.2,81.6]
[1757595869794,7.32,225.43,225.2,81.6]
[1757595869993,7.32,225.43,225.21,2.84]
[1757595870795,7.32,225.43,225.13,0.77262938]
[1757595870796,7.32,225.33,225.13,0.77262938]
[1757595873091,7.32,225.39,225.14,2.84]
[1757595873292,7.32,225.39,225.16,2.84]
[1757595873805,7.32,225.39,225.17,112.34]
[1757595874096,7.32,225.39,225.18,2.84]
[1757595874601,20.33504846,225.39,225.18,2.84]
[1757595875697,12.61504846,225.39,225.18,2.84]
[1757595875897,7.32,225.37,225.18,2.84]
[1757595877693,7.32,225.33,225.13,0.77262938]
[1757595879093,7.32,225.22,225.03,4.95747344]
[1757595879396,5.29504846,225.23,224.83,30.66115704]
[1757595879397,7.32,225.2,224.98,7.79747344]
[1757595879596,7.32,225.2,225.03,2.84]
[1757595884605,7.32,225.2,225.02,0.77309282]
[1757595884804,7.32,225.2,225.02,3.61309282]
[1757595885306,7.32,225.28,225.08,4.95747344]
[1757595885505,7.32,225.28,225.1,2.84]
[1757595887304,7.32,225.28,225.11,119.46]
[1757595887704,7.32,225.28,225.12,2.84]
[1757595888296,7.32,225.28,225.12,64.84]
[1757595889307,7.32,225.28,225.12,2.84]
[1757595892907,7.32,225.28,225.14,2.84]
[1757595893102,7.32,225.28,225.15,36.67747344]
[1757595893308,7.32,225.28,225.16,2.84]
[1757595893702,7.32,225.28,225.13,22.2]
[1757595894406,7.32,225.35,225.15,4.95747344]
[1757595894707,7.32,225.35,225.2,4.95747344]
[1757595894908,7.32,225.35,225.2,20.32]
[1757595897410,7.32,225.35,225.2,82.32]
[1757595897711,7.32,225.35,225.21,3.6989307]
[1757595898311,7.32,225.35,225.2,86.0189307]
[1757595898809,7.32,225.35,225.2,24.0189307]
[1757595899311,7.32,225.35,225.21,3.6989307]
[1757595899510,7.32,225.35,225.13,5.29504846]
[1757595899511,7.31,225.29,225.11,4.95747344]
[1757595899710,7.31,225.29,225.12,4.95747344]
[1757595899912,7.31,225.29,225.13,4.95747344]
[1757595900111,7.31,225.29,225.14,4.95747344]
[1757595900511,5.29504846,225.25,225.12,4.95747344]
[1757595900709,7.31,225.24,225.09,4.95747344]
[1757595900911,12.60504846,225.3,225.1,4.95747344]
[1757595901114,12.60504846,225.3,225.11,4.95747344]
[1757595901309,12.60504846,225.3,225.14,4.95747344]
[1757595901613,12.60504846,225.3,225.13,4.95747344]
[1757595902004,12.60504846,225.3,225.11,4.95747344]
[1757595902405,12.60504846,225.3,225.09,4.95747344]
[1757595902613,7.31,225.24,225.08,4.95747344]
[1757595903114,7.31,225.24,225.09,4.95747344]
[1757595903512,7.31,225.24,225.08,4.95747344]
[1757595903709,7.31,225.29,225.09,4.95747344]
[1757595903910,7.31,225.29,225.1,4.95747344]
[1757595904117,7.31,225.29,225.09,4.95747344]
[1757595904509,7.31,225.29,225.07,25.16]
[1757595904510,7.31,225.29,225.08,4.95747344]
[1757595905016,7.31,225.24,225.05,4.95747344]
[1757595905211,7.31,225.24,225.07,4.95747344]
[1757595905611,7.31,225.24,225.03,43.74]
[1757595905612,7.31,225.24,225.08,4.95747344]
[1757595907008,7.31,225.24,225.11,4.95747344]
[1757595907213,7.31,225.29,225.11,4.95747344]
[1757595907617,7.31,225.29,225.12,4.95747344]
[1757595908409,7.31,225.29,225.11,4.95747344]
[1757595909013,7.31,225.26,225.1,4.95747344]
[1757595910020,7.31,225.26,225.11,4.95747344]
[1757595910425,7.31,225.34,225.12,4.95747344]
[1757595910715,7.31,225.34,225.16,4.95747344]
[1757595910919,12.60504846,225.34,225.16,4.95747344]
[1757595911316,7.31,225.34,225.16,4.95747344]
[1757595911710,12.60504846,225.34,225.16,4.95747344]
[1757595913214,12.60504846,225.34,225.17,4.95747344]
[1757595913421,7.31,225.34,225.19,4.95747344]
[1757595913819,7.31,225.39,225.2,4.95747344]
[1757595914123,7.31,225.39,225.25,4.95747344]
[1757595914423,7.31,225.39,225.22,4.95747344]
[1757595915225,7.31,225.39,225.2,4.95747344]
[1757595915627,7.31,225.39,225.19,4.95747344]
[1757595916325,7.31,225.39,225.18,4.95747344]
[1757595916626,7.31,225.39,225.14,298.34]
[1757595916627,7.31,225.33,225.16,4.95747344]
[1757595917025,7.31,225.33,225.15,4.95747344]
[1757595919030,7.31,225.33,225.17,4.95747344]
[1757595919228,7.31,225.33,225.19,4.95747344]
[1757595919429,7.31,225.33,225.21,4.95747344]
[1757595919625,7.31,225.33,225.2,4.95747344]
[1757595920026,7.31,225.39,225.21,4.95747344]
[1757595920225,7.31,225.39,225.25,4.95747344]
[1757595920426,7.31,225.39,225.24,4.95747344]
[1757595921334,7.31,225.39,225.23,4.95747344]
[1757595921732,7.31,225.39,225.2,4.95747344]
[1757595921931,7.31,225.39,225.21,4.95747344]
[1757595922131,7.31,225.39,225.2,4.95747344]
[1757595922637,7.31,225.39,225.19,4.95747344]
[1757595922837,8.76069773,225.34,225.18,4.95747344]
[1757595923037,7.31,225.33,225.16,4.95747344]
[1757595923238,7.31,225.33,225.19,4.95747344]
[1757595923536,7.31,225.38,225.21,4.95747344]
[1757595923836,7.31,225.38,225.19,4.95747344]
[1757595924036,7.31,225.38,225.17,4.95747344]
[1757595924431,7.31,225.38,225.14,305.77621016]
[1757595924432,7.31,225.39,225.16,125.93747344]
[1757595924638,7.31,225.33,225.16,120.98]
[1757595924837,7.31,225.33,225.16,125.93747344]
[1757595925338,7.31,225.33,225.17,4.95747344]
[1757595927238,7.31,225.33,225.18,4.95747344]
[1757595928038,7.31,225.33,225.19,4.95747344]
[1757595928238,7.08,225.39,225.24,4.95747344]
[1757595928438,7.08,225.39,225.26,4.95747344]
[1757595928635,7.08,225.39,225.26,88.37747344]
[1757595928840,7.08,225.39,225.29,4.95747344]
[1757595929042,7.08,225.45,225.31,4.95747344]
[1757595929239,7.08,225.45,225.3,4.95747344]
[1757595929438,7.08,225.45,225.31,4.95747344]
[1757595930647,7.08,225.45,225.32,4.95747344]
[1757595931144,7.08,225.45,225.31,4.95747344]
[1757595931544,7.08,225.45,225.3,30.17747344]
[1757595931739,7.08,225.45,225.32,4.95747344]
[1757595931942,7.08,225.45,225.32,64.99747344]
[1757595932747,161.83879381,225.51,225.35,4.95747344]
[1757595932947,161.83879381,225.51,225.36,4.95747344]
[1757595933145,161.83879381,225.51,225.37,4.95747344]
[1757595933441,161.83879381,225.51,225.37,120.9]
[1757595933841,161.83879381,225.51,225.37,125.85747344]
[1757595934036,7.08,225.51,225.38,4.95747344]
[1757595934237,7.08,225.59,225.39,4.95747344]
[1757595934443,7.08,225.59,225.4,14.73747344]
[1757595934851,7.08,225.59,225.41,14.24]
[1757595935148,7.08,225.49,225.33,4.95747344]
[1757595935343,7.08,225.49,225.32,4.95747344]
[1757595935548,7.08,225.49,225.31,31.01747344]
[1757595935940,7.08,225.49,225.32,4.95747344]
[1757595936142,7.08,225.56,225.33,4.95747344]
[1757595936343,7.08,225.56,225.36,4.95747344]
[1757595936543,7.08,225.56,225.38,4.95747344]
[1757595937149,7.08,225.56,225.39,4.95747344]
[1757595937347,7.08,225.56,225.38,4.95747344]
[1757595937544,7.08,225.56,225.39,101.7]
[1757595937745,7.08,225.56,225.39,106.65747344]
[1757595938050,7.08,225.56,225.39,4.95747344]
[1757595938649,305.34,225.61,225.4,92.34]
[1757595939050,7.08,225.61,225.4,92.34]
[1757595939248,7.08,225.61,225.41,62.0]
[1757595939853,7.08,225.61,225.42,4.95747344]
[1757595940348,7.08,225.61,225.35,8.76069773]
[1757595940349,7.08,225.61,225.41,4.95747344]
[1757595940652,7.08,225.61,225.42,11.48]
[1757595942449,7.08,225.69,225.45,4.95747344]
[1757595942649,7.08,225.69,225.46,303.01747344]
[1757595943151,7.08,225.69,225.48,4.95747344]
[1757595943350,7.08,225.69,225.47,80.26747344]
[1757595943857,7.08,225.69,225.48,4.95747344]
[1757595944053,13.3899413,225.93,225.57,4.95747344]
[1757595944259,7.08,225.96,225.59,13.31]
[1757595944456,7.08,225.89,225.59,18.26747344]
[1757595944761,13.24881412,225.96,225.6,34.11]
[1757595944762,7.08,225.95,225.6,34.11]
[1757595944955,7.08,225.89,225.6,34.11]
[1757595945150,7.08,225.89,225.62,13.31]
[1757595945356,8.76069773,225.94,225.63,298.0]
[1757595945652,7.08,225.93,225.64,120.82]
[1757595945954,7.08,225.93,225.63,298.0]
[1757595946149,7.08,225.93,225.64,120.8]
[1757595946347,7.08,225.93,225.63,298.0]
[1757595946348,7.08,225.93,225.65,120.8]
[1757595946655,7.08,225.93,225.63,298.0]
[1757595947054,7.08,225.93,225.66,62.0]
[1757595947252,8.76069773,225.94,225.66,62.0]
[1757595947451,8.76069773,225.94,225.67,120.78]
[1757595947653,8.76069773,225.94,225.68,120.78]
[1757595947853,7.08,225.93,225.69,120.78]
[1757595948057,7.08,225.93,225.7,120.76]
[1757595948258,8.76069773,225.94,225.66,62.0]
[1757595948453,7.08,225.93,225.66,62.0]
[1757595948653,8.76069773,225.94,225.67,120.76]
[1757595948853,7.08,225.93,225.67,13.10504966]
[1757595949058,8.76069773,225.94,225.68,120.74]
[1757595949255,7.08,225.93,225.67,8.76069773]
[1757595949452,20.39,226.0,225.68,120.74]
[1757595949658,0.77067024,226.01,225.68,120.74]
[1757595949861,8.76069773,226.03,225.67,8.76069773]
[1757595950159,7.08,226.01,225.68,8.38]
[1757595950358,20.39,226.01,225.67,8.76069773]
[1757595950553,22.07069773,225.97,225.68,50.82]
[1757595950754,7.08,225.95,225.68,50.82]
[1757595951361,13.12,225.96,225.68,50.82]
[1757595951860,7.08,225.95,225.66,13.50031427]
[1757595952159,7.08,225.92,225.67,120.72]
[1757595952863,8.76069773,225.93,225.67,120.72]
[1757595953164,7.08,225.92,225.67,120.72]
[1757595953863,8.76069773,225.93,225.67,120.72]
[1757595954063,8.76069773,225.93,225.66,13.58874851]
[1757595954261,7.08,225.92,225.63,360.0]
[1757595954460,8.76069773,225.87,225.64,120.68]
[1757595955168,7.08,225.86,225.64,120.68]
[1757595956755,7.08,225.86,225.64,134.2293556]
[1757595957459,7.08,225.86,225.65,120.66]
[1757595959261,7.08,225.86,225.64,13.5493556]
[1757595959463,7.02,225.85,225.63,298.0]
[1757595959668,8.76069773,225.86,225.63,298.0]
[1757595959871,13.31,225.92,225.64,120.64]
[1757595960169,7.02,225.86,225.64,120.64]
[1757595961160,7.02,225.86,225.64,133.83450735]
[1757595961364,7.02,225.86,225.64,13.19450735]
[1757595961573,7.02,225.86,225.65,120.64]
[1757595962470,7.02,225.86,225.66,62.0]
[1757595964271,8.76069773,225.93,225.66,62.0]
[1757595964464,22.07069773,225.93,225.67,120.62]
[1757595964670,15.26,225.94,225.63,298.0]
[1757595964671,8.76069773,225.87,225.68,120.62]
[1757595965167,8.76069773,225.87,225.63,298.0]
[1757595965168,8.76069773,225.9,225.57,13.31]
[1757595965470,7.02,225.89,225.58,8.02]
[1757595966773,7.02,225.83,225.59,120.6]
[1757595968268,7.02,225.83,225.59,13.20141973]
[1757595968471,29.34069773,225.84,225.6,120.6]
[1757595968670,7.02,225.83,225.6,120.6]
[1757595968970,29.34069773,225.84,225.61,120.6]
[1757595969169,7.02,225.83,225.61,120.6]
[1757595969674,8.76069773,225.93,225.61,120.6]
[1757595969969,8.76069773,225.93,225.62,81.02]
[1757595970166,7.02,225.92,225.62,81.02]
[1757595970571,8.76069773,225.93,225.62,81.02]
[1757595970776,7.02,225.92,225.62,81.02]
[1757595970978,7.02,225.92,225.64,8.76069773]
[1757595971474,7.02,225.92,225.65,62.0]
[1757595971774,7.02,225.92,225.66,94.96]
[1757595972767,129.34069773,225.93,225.66,94.96]
[1757595972973,7.02,225.92,225.66,94.96]
[1757595973568,129.34069773,225.93,225.66,94.96]
[1757595973773,7.02,225.92,225.66,94.96]
[1757595974665,129.32069773,225.93,225.66,94.96]
[1757595974867,129.32069773,225.93,225.67,62.0]
[1757595975066,7.02,225.92,225.67,62.0]
[1757595975270,7.02,225.92,225.67,65.62904251]
[1757595976279,7.02,225.92,225.68,3.62904251]
[1757595976472,7.02,225.92,225.69,5.26991007]
[1757595977371,7.02,225.92,225.68,3.62904251]
[1757595977372,7.02,225.92,225.74,5.26991007]
[1757595977570,7.02,225.92,225.75,116.08904251]
[1757595978075,1282.20266996,226.18,225.75,112.46]
[1757595978389,7.02,226.08,225.84,3.62904251]
[1757595978573,7.02,226.08,225.85,120.54]
[1757595978774,7.02,226.08,225.85,124.16904251]
[1757595979075,7.02,226.08,225.86,3.62904251]
[1757595979278,7.02,226.08,225.87,120.52]
[1757595979573,7.02,226.08,225.88,62.0]
[1757595979773,7.02,226.08,225.89,95.66]
[1757595980179,7.02,226.08,225.9,120.52]
[1757595981779,7.02,226.08,225.88,62.0]
[1757595981974,7.02,226.08,225.85,3.62904251]
[1757595982175,7.02,225.97,225.78,13.26904251]
[1757595982379,5.26991007,225.98,225.77,17.02904251]
[1757595982680,7.02,225.97,225.77,13.4]
[1757595982880,7.02,225.97,225.76,16.04]
[1757595983374,7.02,225.97,225.77,3.62904251]
[1757595983682,7.02,225.94,225.76,16.04]
[1757595983868,5.26991007,225.95,225.76,16.04]
[1757595984678,5.26991007,225.95,225.72,4.95747344]
[1757595984679,7.02,225.94,225.72,102.50904251]
[1757595985374,7.02,225.94,225.73,3.62904251]
[1757595985574,94.96,225.94,225.73,3.62904251]
[1757595986080,94.96,225.94,225.74,3.62904251]
[1757595986274,94.96,225.94,225.75,3.62904251]
[1757595987279,94.96,225.94,225.76,3.62904251]
[1757595987978,7.02,225.94,225.74,3.62904251]
[1757595988175,5.26991007,225.99,225.79,3.62904251]
[1757595988371,5.26991007,225.99,225.78,14.14904251]
[1757595988570,7.28,225.98,225.78,3.62904251]
[1757595988781,7.28,225.98,225.77,9.12904251]
[1757595988981,7.28,225.98,225.77,5.5]
[1757595989377,7.28,225.93,225.77,5.5]
[1757595991381,7.28,225.93,225.76,3.70326093]
[1757595991582,7.28,225.93,225.72,3.70326093]
[1757595992373,51.92,225.93,225.74,3.70326093]
[1757595992582,51.92,225.93,225.75,3.70326093]
[1757595993876,7.28,225.93,225.75,3.70326093]
[1757595994790,7.28,225.93,225.77,3.70326093]
[1757595995483,7.28,225.9,225.74,3.70326093]
[1757595995788,7.28,225.9,225.68,297.52]
[1757595995789,7.28,225.85,225.73,3.70326093]
[1757595997889,7.28,225.85,225.72,3.70326093]
[1757595998385,7.28,225.85,225.73,3.70326093]
[1757595998991,7.28,225.85,225.71,3.70326093]
[1757596002594,7.28,225.85,225.74,3.70326093]
[1757596002894,7.28,225.85,225.73,3.70326093]
[1757596005398,7.28,225.85,225.72,3.70326093]
[1757596006492,7.28,225.85,225.71,3.70326093]
[1757596008094,7.28,225.85,225.73,3.70326093]
[1757596008290,7.28,225.85,225.75,3.70326093]
[1757596008998,7.28,225.93,225.75,3.70326093]
[1757596009200,7.28,225.93,225.76,3.70326093]
[1757596009595,7.28,225.93,225.73,4.95747344]
[1757596009596,7.28,225.93,225.77,3.70326093]
[1757596010594,7.28,225.93,225.76,3.70326093]
[1757596011599,7.28,225.93,225.75,3.70326093]
[1757596012198,5.26991007,225.88,225.75,3.70326093]
[1757596012403,7.28,225.82,225.73,3.63626093]
[1757596012704,7.28,225.82,225.67,4.95747344]
[1757596013406,7.28,225.82,225.68,4.95747344]
[1757596014307,7.28,225.82,225.67,4.95747344]
[1757596015409,7.28,225.82,225.66,4.95747344]
[1757596020412,7.28,225.82,225.65,4.95747344]
[1757596021507,7.28,225.82,225.62,69.43621016]
[1757596021508,7.28,225.82,225.64,4.95747344]
[1757596021812,7.28,225.82,225.62,4.95747344]
[1757596022113,7.28,225.82,225.64,4.95747344]
[1757596022315,7.28,225.82,225.63,4.95747344]
[1757596022504,7.29,225.82,225.63,4.95747344]
[1757596022709,7.29,225.82,225.64,4.95747344]
[1757596022908,7.29,225.82,225.65,4.95747344]
[1757596023313,7.29,225.82,225.66,4.95747344]
[1757596024005,7.29,225.82,225.7,4.95747344]
[1757596024207,7.29,225.82,225.69,4.95747344]
[1757596024409,7.29,225.82,225.7,4.95747344]
[1757596025109,7.29,225.87,225.7,4.95747344]
[1757596025307,7.29,225.87,225.63,67.26991007]
[1757596025308,7.29,225.87,225.74,4.95747344]
[1757596025812,12.55991007,225.87,225.69,4.95747344]
[1757596026514,12.55991007,225.87,225.7,4.95747344]
[1757596027108,12.55991007,225.87,225.61,21.71494688]
[1757596027109,7.29,225.87,225.71,4.95747344]
[1757596027711,7.29,225.87,225.72,4.95747344]
[1757596028305,7.29,225.87,225.73,4.95747344]
[1757596029317,7.29,225.87,225.72,4.95747344]
[1757596030415,7.29,225.84,225.69,4.95747344]
[1757596031008,7.29,225.84,225.68,4.95747344]
[1757596031509,7.29,225.82,225.68,4.95747344]
[1757596031708,7.29,225.8,225.67,4.95747344]
[1757596032018,7.29,225.78,225.66,4.95747344]
[1757596032221,3.49021821,225.77,225.66,4.95747344]
[1757596032517,3.49021821,225.76,225.66,4.95747344]
[1757596032719,7.29,225.78,225.66,4.95747344]
[1757596032911,7.29,225.78,225.67,4.95747344]
[1757596032912,3.48953995,225.77,225.67,4.95747344]
[1757596033114,7.29,225.78,225.68,4.95747344]
[1757596033316,7.29,225.78,225.69,4.95747344]
[1757596034218,7.29,225.78,225.68,4.95747344]
[1757596034419,7.29,225.78,225.69,4.95747344]
[1757596034826,7.29,225.84,225.7,4.95747344]
[1757596035020,3.4929399,225.83,225.74,4.95747344]
[1757596035221,7.29,225.84,225.74,4.95747344]
[1757596035418,7.29,225.84,225.76,4.95747344]
[1757596036531,7.29,225.84,225.75,4.95747344]
[1757596036926,3.49664368,225.83,225.75,4.95747344]
[1757596037125,7.29,225.84,225.74,4.95747344]
[1757596037325,3.4967712,225.83,225.74,4.95747344]
[1757596037523,3.49661642,225.82,225.72,4.95747344]
[1757596037732,3.49661642,225.81,225.72,4.95747344]
[1757596037918,3.49661642,225.8,225.72,4.95747344]
[1757596038118,3.49596793,225.79,225.71,4.95747344]
[1757596038323,7.29,225.84,225.69,4.95747344]
[1757596038529,7.29,225.82,225.7,4.95747344]
[1757596038826,3.49548107,225.81,225.7,4.95747344]
[1757596039019,3.49548107,225.81,225.69,4.95747344]
[1757596039222,10.78548107,225.8,225.69,4.95747344]
[1757596039426,3.49548107,225.79,225.69,4.95747344]
[1757596039624,7.29,225.84,225.69,4.95747344]
[1757596039928,3.49629697,225.83,225.72,4.95747344]
[1757596040130,3.49629697,225.82,225.72,4.95747344]
[1757596040327,3.49629697,225.81,225.72,4.95747344]
[1757596040629,7.29,225.84,225.72,4.95747344]
[1757596040630,3.49629697,225.8,225.72,4.95747344]
[1757596040831,7.29,225.84,225.72,4.95747344]
[1757596041026,3.49692853,225.83,225.72,4.95747344]
[1757596041328,3.49692853,225.82,225.73,4.95747344]
[1757596041527,7.29,225.8,225.72,4.95747344]
[1757596041825,3.49692853,225.79,225.7,4.95747344]
[1757596042022,7.29,225.8,225.7,4.95747344]
[1757596042227,3.49630934,225.79,225.7,4.95747344]
[1757596042526,3.49609183,225.78,225.67,4.95747344]
[1757596042732,3.49609183,225.77,225.68,4.95747344]
[1757596042923,3.49609183,225.76,225.67,4.95747344]
[1757596043124,7.29,225.8,225.68,4.95747344]
[1757596043431,3.49534706,225.79,225.68,4.95747344]
[1757596043630,3.49534706,225.78,225.68,4.95747344]
[1757596043829,3.49534706,225.77,225.68,4.95747344]
[1757596044027,3.49534706,225.76,225.68,4.95747344]
[1757596044224,7.29,225.8,225.68,4.95747344]
[1757596044528,3.49493026,225.79,225.68,4.95747344]
[1757596044728,3.49493026,225.78,225.68,4.95747344]
[1757596045027,3.49493026,225.77,225.68,4.95747344]
[1757596045229,3.49493026,225.76,225.68,4.95747344]
[1757596045422,7.29,225.8,225.67,4.95747344]
[1757596045726,3.49451931,225.79,225.67,4.95747344]
[1757596045920,3.49451931,225.78,225.67,4.95747344]
[1757596046120,3.49451931,225.77,225.67,4.95747344]
[1757596046327,7.29,225.8,225.67,4.95747344]
[1757596046328,3.49451931,225.76,225.67,4.95747344]
[1757596046520,7.29,225.8,225.67,4.95747344]
[1757596046718,3.4935445,225.79,225.67,4.95747344]
[1757596046933,3.4935445,225.78,225.67,4.95747344]
[1757596047233,3.4935445,225.78,225.64,7.43621016]
[1757596047234,3.4935445,225.77,225.68,4.95747344]
[1757596047435,7.29,225.8,225.68,4.95747344]
[1757596047732,3.49106197,225.79,225.68,4.95747344]
[1757596047926,3.49106197,225.78,225.68,4.95747344]
[1757596048121,21.5,225.85,225.67,4.95747344]
[1757596048122,6.88,225.76,225.67,4.95747344]
[1757596049624,3.49067595,225.75,225.66,4.95747344]
[1757596049823,6.88,225.76,225.66,4.95747344]
[1757596050024,3.49088263,225.75,225.65,4.95747344]
[1757596050231,3.49088263,225.74,225.65,4.95747344]
[1757596050433,6.88,225.76,225.65,4.95747344]
[1757596050628,3.49015113,225.75,225.65,4.95747344]
[1757596050828,3.49015113,225.74,225.65,4.95747344]
[1757596051028,6.88,225.76,225.65,4.95747344]
[1757596051231,3.49013075,225.75,225.64,4.95747344]
[1757596051534,6.88,225.76,225.65,4.95747344]
[1757596051832,3.4892503,225.75,225.66,4.95747344]
[1757596052024,6.88,225.76,225.66,4.95747344]
[1757596052231,3.48929101,225.75,225.66,4.95747344]
[1757596052532,6.88,225.76,225.65,4.95747344]
[1757596052737,3.48900534,225.75,225.65,4.95747344]
[1757596052933,6.88,225.76,225.65,4.95747344]
[1757596053132,3.48899129,225.75,225.65,4.95747344]
[1757596053435,6.88,225.76,225.65,4.95747344]
[1757596053633,3.4888519,225.75,225.65,4.95747344]
[1757596053833,6.88,225.76,225.65,4.95747344]
[1757596054035,3.4891391,225.75,225.65,4.95747344]
[1757596054238,6.88,225.76,225.65,4.95747344]
[1757596054435,3.49002375,225.75,225.65,4.95747344]
[1757596054636,6.88,225.76,225.65,4.95747344]
[1757596054838,3.49001784,225.75,225.65,4.95747344]
[1757596055034,6.88,225.76,225.65,4.95747344]
[1757596055242,3.49001432,225.75,225.65,4.95747344]
[1757596055434,3.49001432,225.74,225.65,4.95747344]
[1757596055638,6.88,225.76,225.65,4.95747344]
[1757596055832,3.48975776,225.75,225.65,4.95747344]
[1757596056038,10.36975776,225.74,225.64,4.95747344]
[1757596056235,8.72014566,225.81,225.63,4.95747344]
[1757596056236,6.88,225.72,225.63,4.95747344]
[1757596056434,3.48975776,225.71,225.6,4.95747344]